[Event "Titled Tuesday Blitz August 02 Late 2022"]
[White "Wieczorek, Oskar"]
[Black "Grischuk, Alexander"]
[WhiteFideId "1133950"]
[BlackFideId "4126025"]
[WhiteElo "2330"]
[BlackElo "2762"]
[Result "0-1"]
[Round "07"]
[TimeControl "180+1"]
[Date "2022.08.02"]
[WhiteClock "0:00:02"]
[BlackClock "0:00:16"]

1. e4 {[%clk 0:03:00]}  e6 {[%clk 0:03:00]} 2. d4 {[%clk 0:03:01]}  d5 {[%clk 0:03:00]} 3. Nd2 {[%clk 0:03:01]}  c5 {[%clk 0:03:00]} 4. exd5 {[%clk 0:03:01]}  Qxd5 {[%clk 0:03:01]} 5. Ngf3 {[%clk 0:02:57]}  cxd4 {[%clk 0:03:01]} 6. g3 {[%clk 0:02:58]}  b6 {[%clk 0:02:49]} 7. Bc4 {[%clk 0:02:50]}  Qd8 {[%clk 0:02:38]} 8. Bb5+ {[%clk 0:02:33]}  Bd7 {[%clk 0:02:26]} 9. Nxd4 {[%clk 0:02:22]}  a6 {[%clk 0:01:46]} 10. Qf3 {[%clk 0:02:05]}  Ra7 {[%clk 0:01:46]} 11. Nc6 {[%clk 0:02:01]}  Nxc6 {[%clk 0:01:44]} 12. Bxc6 {[%clk 0:02:02]}  Nf6 {[%clk 0:01:39]} 13. O-O {[%clk 0:01:59]}  Rc7 {[%clk 0:01:20]} 14. Bxd7+ {[%clk 0:01:56]}  Qxd7 {[%clk 0:01:21]} 15. Rd1 {[%clk 0:01:38]}  Qc6 {[%clk 0:01:21]} 16. Qxc6+ {[%clk 0:01:34]}  Rxc6 {[%clk 0:01:21]} 17. c3 {[%clk 0:01:35]}  Be7 {[%clk 0:01:15]} 18. Nf3 {[%clk 0:01:33]}  O-O {[%clk 0:01:13]} 19. Ne5 {[%clk 0:01:24]}  Rc7 {[%clk 0:01:13]} 20. Be3 {[%clk 0:01:23]}  Nd5 {[%clk 0:01:12]} 21. Bd2 {[%clk 0:01:07]}  f6 {[%clk 0:01:12]} 22. Ng4 {[%clk 0:01:05]}  Rfc8 {[%clk 0:00:49]} 23. Ne3 {[%clk 0:01:01]}  Nxe3 {[%clk 0:00:50]} 24. Bxe3 {[%clk 0:01:02]}  b5 {[%clk 0:00:50]} 25. a3 {[%clk 0:00:57]}  Kf7 {[%clk 0:00:49]} 26. Kf1 {[%clk 0:00:58]}  e5 {[%clk 0:00:50]} 27. Ke2 {[%clk 0:00:56]}  h5 {[%clk 0:00:50]} 28. h4 {[%clk 0:00:48]}  Ke6 {[%clk 0:00:50]} 29. Bb6 {[%clk 0:00:35]}  Rc4 {[%clk 0:00:48]} 30. Rd3 {[%clk 0:00:31]}  R8c6 {[%clk 0:00:42]} 31. Ba5 {[%clk 0:00:31]}  Rd6 {[%clk 0:00:39]} 32. Rad1 {[%clk 0:00:27]}  Rxd3 {[%clk 0:00:38]} 33. Rxd3 {[%clk 0:00:27]}  g5 {[%clk 0:00:35]} 34. hxg5 {[%clk 0:00:16]}  fxg5 {[%clk 0:00:36]} 35. Bb4 {[%clk 0:00:15]}  Rc8 {[%clk 0:00:22]} 36. Bxe7 {[%clk 0:00:08]}  Kxe7 {[%clk 0:00:23]} 37. Ke3 {[%clk 0:00:05]}  Ke6 {[%clk 0:00:22]} 38. Rd1 {[%clk 0:00:04]}  h4 {[%clk 0:00:21]} 39. gxh4 {[%clk 0:00:05]}  gxh4 {[%clk 0:00:21]} 40. Rh1 {[%clk 0:00:05]}  Rh8 {[%clk 0:00:21]} 41. Kf3 {[%clk 0:00:06]}  Kf5 {[%clk 0:00:22]} 42. Rg1 {[%clk 0:00:06]}  e4+ {[%clk 0:00:21]} 43. Ke3 {[%clk 0:00:06]}  h3 {[%clk 0:00:19]} 44. Rh1 {[%clk 0:00:06]}  h2 {[%clk 0:00:19]} 45. f3 {[%clk 0:00:06]}  Rh3 {[%clk 0:00:18]} 46. Ke2 {[%clk 0:00:05]}  exf3+ {[%clk 0:00:17]} 47. Kf2 {[%clk 0:00:06]}  Ke4 {[%clk 0:00:16]} 48. b3 {[%clk 0:00:05]}  Kd3 {[%clk 0:00:16]} 49. a4 {[%clk 0:00:02]}  Kxc3 {[%clk 0:00:16]} 0-1


[Site "https://www.chess.com"]

[Event "Titled Tuesday Blitz August 02 Late 2022"]
[White "Wu, Rochelle"]
[Black "Ohanyan, Emin"]
[WhiteFideId "30908132"]
[BlackFideId "13312022"]
[WhiteElo "2168"]
[BlackElo "1927"]
[Result "1-0"]
[Round "07"]
[TimeControl "180+1"]
[Date "2022.08.02"]
[WhiteClock "0:00:11"]
[BlackClock "0:00:03"]

1. e4 {[%clk 0:02:31]}  e5 {[%clk 0:02:56]} 2. Nf3 {[%clk 0:02:32]}  Nc6 {[%clk 0:02:55]} 3. Bb5 {[%clk 0:02:32]}  f5 {[%clk 0:02:54]} 4. d3 {[%clk 0:02:27]}  fxe4 {[%clk 0:02:54]} 5. dxe4 {[%clk 0:02:28]}  Nf6 {[%clk 0:02:54]} 6. Nc3 {[%clk 0:02:27]}  Bb4 {[%clk 0:02:54]} 7. Bd2 {[%clk 0:02:10]}  O-O {[%clk 0:02:29]} 8. Qe2 {[%clk 0:02:05]}  Kh8 {[%clk 0:02:18]} 9. O-O-O {[%clk 0:01:58]}  d6 {[%clk 0:02:12]} 10. Qc4 {[%clk 0:01:50]}  Bxc3 {[%clk 0:01:56]} 11. Bxc3 {[%clk 0:01:50]}  Qe8 {[%clk 0:01:53]} 12. Kb1 {[%clk 0:01:38]}  a6 {[%clk 0:01:52]} 13. Bxc6 {[%clk 0:01:38]}  bxc6 {[%clk 0:01:53]} 14. h4 {[%clk 0:01:36]}  Be6 {[%clk 0:01:52]} 15. Qa4 {[%clk 0:01:35]}  c5 {[%clk 0:01:52]} 16. Qxe8 {[%clk 0:01:31]}  Raxe8 {[%clk 0:01:50]} 17. Rhe1 {[%clk 0:01:29]}  Ng4 {[%clk 0:01:50]} 18. Rd2 {[%clk 0:01:27]}  h6 {[%clk 0:01:48]} 19. Kc1 {[%clk 0:01:24]}  Kh7 {[%clk 0:01:47]} 20. a3 {[%clk 0:01:22]}  Bc8 {[%clk 0:01:40]} 21. Ba5 {[%clk 0:01:17]}  Re7 {[%clk 0:01:39]} 22. b4 {[%clk 0:01:15]}  cxb4 {[%clk 0:01:37]} 23. axb4 {[%clk 0:01:16]}  Bb7 {[%clk 0:01:38]} 24. c4 {[%clk 0:01:16]}  Rf4 {[%clk 0:01:37]} 25. Rde2 {[%clk 0:01:15]}  Nf6 {[%clk 0:01:33]} 26. Nd2 {[%clk 0:01:15]}  Rxh4 {[%clk 0:01:32]} 27. c5 {[%clk 0:01:11]}  d5 {[%clk 0:01:21]} 28. exd5 {[%clk 0:01:10]}  Nxd5 {[%clk 0:01:22]} 29. g3 {[%clk 0:01:02]}  Rd4 {[%clk 0:01:19]} 30. Rxe5 {[%clk 0:00:56]}  Rxe5 {[%clk 0:01:18]} 31. Rxe5 {[%clk 0:00:57]}  Nxb4 {[%clk 0:01:19]} 32. Bxb4 {[%clk 0:00:55]}  Rxb4 {[%clk 0:01:20]} 33. Re7 {[%clk 0:00:56]}  c6 {[%clk 0:01:01]} 34. Ne4 {[%clk 0:00:56]}  Bc8 {[%clk 0:00:35]} 35. Nd6 {[%clk 0:00:53]}  Bh3 {[%clk 0:00:32]} 36. Kc2 {[%clk 0:00:37]}  a5 {[%clk 0:00:27]} 37. Kc3 {[%clk 0:00:37]}  Rb1 {[%clk 0:00:26]} 38. Ne8 {[%clk 0:00:31]}  Rc1+ {[%clk 0:00:08]} 39. Kd4 {[%clk 0:00:30]}  Rd1+ {[%clk 0:00:09]} 40. Kc3 {[%clk 0:00:30]}  Rd5 {[%clk 0:00:09]} 41. Rxg7+ {[%clk 0:00:29]}  Kh8 {[%clk 0:00:09]} 42. Kc4 {[%clk 0:00:23]}  Bf1+ {[%clk 0:00:09]} 43. Kb3 {[%clk 0:00:22]}  Rxc5 {[%clk 0:00:09]} 44. Rc7 {[%clk 0:00:21]}  Re5 {[%clk 0:00:06]} 45. Nf6 {[%clk 0:00:19]}  Bd3 {[%clk 0:00:06]} 46. Rxc6 {[%clk 0:00:19]}  Re2 {[%clk 0:00:04]} 47. Nd5 {[%clk 0:00:15]}  Be4 {[%clk 0:00:03]} 48. Rc8+ {[%clk 0:00:15]}  Kg7 {[%clk 0:00:03]} 49. Nf4 {[%clk 0:00:15]}  Rxf2 {[%clk 0:00:03]} 50. Rc7+ {[%clk 0:00:14]}  Kf6 {[%clk 0:00:02]} 51. Ra7 {[%clk 0:00:15]}  Rf3+ {[%clk 0:00:03]} 52. Kc4 {[%clk 0:00:14]}  Ra3 {[%clk 0:00:02]} 53. Kd4 {[%clk 0:00:13]}  Bf3 {[%clk 0:00:02]} 54. Ra6+ {[%clk 0:00:13]}  Kg7 {[%clk 0:00:02]} 55. Ra7+ {[%clk 0:00:12]}  Kf6 {[%clk 0:00:02]} 56. Ra6+ {[%clk 0:00:12]}  Kg7 {[%clk 0:00:02]} 57. Ra7+ {[%clk 0:00:12]}  Kg8 {[%clk 0:00:02]} 58. Ke5 {[%clk 0:00:12]}  Rb3 {[%clk 0:00:02]} 59. Rxa5 {[%clk 0:00:12]}  Rb6 {[%clk 0:00:02]} 60. Ra7 {[%clk 0:00:12]}  Bb7 {[%clk 0:00:02]} 61. Ra5 {[%clk 0:00:09]}  Kf7 {[%clk 0:00:02]} 62. Kf5 {[%clk 0:00:09]}  Bc8+ {[%clk 0:00:02]} 63. Ke4 {[%clk 0:00:10]}  Bb7+ {[%clk 0:00:03]} 64. Ke5 {[%clk 0:00:10]}  Rb3 {[%clk 0:00:03]} 65. Rc5 {[%clk 0:00:10]}  Ke7 {[%clk 0:00:02]} 66. Rc7+ {[%clk 0:00:10]}  Ke8 {[%clk 0:00:02]} 67. Kf6 {[%clk 0:00:09]}  Rb6+ {[%clk 0:00:02]} 68. Ne6 {[%clk 0:00:10]}  Rxe6+ {[%clk 0:00:01]} 69. Kxe6 {[%clk 0:00:10]}  Ba6 {[%clk 0:00:01]} 70. Ra7 {[%clk 0:00:10]}  Bc4+ {[%clk 0:00:01]} 71. Kf6 {[%clk 0:00:10]}  h5 {[%clk 0:00:01]} 72. Rh7 {[%clk 0:00:10]}  Bd3 {[%clk 0:00:02]} 73. Rxh5 {[%clk 0:00:10]}  Bc2 {[%clk 0:00:02]} 74. Re5+ {[%clk 0:00:10]}  Kf8 {[%clk 0:00:03]} 75. Rc5 {[%clk 0:00:11]}  Bf5 {[%clk 0:00:03]} 76. Kxf5 {[%clk 0:00:11]} 1-0


[Site "https://www.chess.com"]

[Event "Titled Tuesday Blitz August 02 Late 2022"]
[White "Andreikin, Dmitry"]
[Black "Shimanov, Aleksandr"]
[WhiteFideId "4158814"]
[BlackFideId "4198603"]
[WhiteElo "2736"]
[BlackElo "2605"]
[Result "0-1"]
[Round "08"]
[TimeControl "180+1"]
[Date "2022.08.02"]
[WhiteClock "0:00:03"]
[BlackClock "0:00:03"]

1. d4 {[%clk 0:03:00]}  Nf6 {[%clk 0:02:53]} 2. c4 {[%clk 0:03:01]}  g6 {[%clk 0:02:53]} 3. Nc3 {[%clk 0:03:01]}  Bg7 {[%clk 0:02:53]} 4. e4 {[%clk 0:03:01]}  d6 {[%clk 0:02:54]} 5. h3 {[%clk 0:03:01]}  O-O {[%clk 0:02:54]} 6. Be3 {[%clk 0:03:02]}  Na6 {[%clk 0:02:52]} 7. Nf3 {[%clk 0:03:01]}  e5 {[%clk 0:02:50]} 8. d5 {[%clk 0:02:58]}  Nc5 {[%clk 0:02:50]} 9. Nd2 {[%clk 0:02:58]}  a5 {[%clk 0:02:50]} 10. Be2 {[%clk 0:02:58]}  c6 {[%clk 0:02:41]} 11. O-O {[%clk 0:02:57]}  Nfd7 {[%clk 0:02:40]} 12. Nb3 {[%clk 0:02:52]}  Nxb3 {[%clk 0:02:35]} 13. axb3 {[%clk 0:02:49]}  c5 {[%clk 0:02:33]} 14. Nb5 {[%clk 0:02:47]}  Ra6 {[%clk 0:02:16]} 15. Qd2 {[%clk 0:02:37]}  Nf6 {[%clk 0:01:58]} 16. Bf3 {[%clk 0:02:28]}  Ne8 {[%clk 0:01:49]} 17. Be2 {[%clk 0:02:04]}  Bd7 {[%clk 0:01:46]} 18. Kh1 {[%clk 0:01:55]}  Bxb5 {[%clk 0:01:35]} 19. cxb5 {[%clk 0:01:56]}  Ra8 {[%clk 0:01:35]} 20. g4 {[%clk 0:01:43]}  Nf6 {[%clk 0:01:26]} 21. Bf3 {[%clk 0:01:28]}  Nd7 {[%clk 0:01:22]} 22. Rg1 {[%clk 0:01:27]}  b6 {[%clk 0:01:16]} 23. Rg3 {[%clk 0:01:22]}  f6 {[%clk 0:01:04]} 24. h4 {[%clk 0:01:16]}  Qe7 {[%clk 0:00:55]} 25. Kg2 {[%clk 0:01:14]}  Kf7 {[%clk 0:00:51]} 26. g5 {[%clk 0:01:08]}  Ke8 {[%clk 0:00:47]} 27. h5 {[%clk 0:01:04]}  f5 {[%clk 0:00:39]} 28. exf5 {[%clk 0:01:03]}  gxf5 {[%clk 0:00:39]} 29. h6 {[%clk 0:01:03]}  Bh8 {[%clk 0:00:39]} 30. Bh5+ {[%clk 0:01:01]}  Kd8 {[%clk 0:00:39]} 31. f4 {[%clk 0:00:48]}  Kc7 {[%clk 0:00:38]} 32. Kh3 {[%clk 0:00:43]}  Rg8 {[%clk 0:00:30]} 33. Rag1 {[%clk 0:00:38]}  e4 {[%clk 0:00:25]} 34. g6 {[%clk 0:00:34]}  hxg6 {[%clk 0:00:23]} 35. Rxg6 {[%clk 0:00:31]}  Rxg6 {[%clk 0:00:22]} 36. Rxg6 {[%clk 0:00:32]}  Nf6 {[%clk 0:00:15]} 37. Qd1 {[%clk 0:00:32]}  Rg8 {[%clk 0:00:14]} 38. Rg5 {[%clk 0:00:30]}  Qf8 {[%clk 0:00:12]} 39. Rxg8 {[%clk 0:00:15]}  Qxg8 {[%clk 0:00:12]} 40. Be2 {[%clk 0:00:10]}  Qg6 {[%clk 0:00:12]} 41. b4 {[%clk 0:00:06]}  Qxh6+ {[%clk 0:00:12]} 42. Kg2 {[%clk 0:00:07]}  Qg7+ {[%clk 0:00:04]} 43. Kh3 {[%clk 0:00:04]}  axb4 {[%clk 0:00:05]} 44. Qa4 {[%clk 0:00:03]}  Nd7 {[%clk 0:00:05]} 45. Qa8 {[%clk 0:00:02]}  Qh6+ {[%clk 0:00:04]} 46. Kg2 {[%clk 0:00:02]}  Qg7+ {[%clk 0:00:04]} 47. Kf1 {[%clk 0:00:03]}  Qxb2 {[%clk 0:00:04]} 48. Bf2 {[%clk 0:00:03]}  Qa1+ {[%clk 0:00:03]} 49. Kg2 {[%clk 0:00:03]}  Qxa8 {[%clk 0:00:03]} 0-1


[Site "https://www.chess.com"]

[Event "Titled Tuesday Blitz August 02 Late 2022"]
[White "Blanco Ronquillo, Humberto L."]
[Black "Steinberg, Nitzan"]
[WhiteFideId "3504239"]
[BlackFideId "2801795"]
[WhiteElo "2423"]
[BlackElo "2471"]
[Result "0-1"]
[Round "08"]
[TimeControl "180+1"]
[Date "2022.08.02"]
[WhiteClock "0:00:05"]
[BlackClock "0:00:05"]

1. e4 {[%clk 0:03:00]}  c5 {[%clk 0:02:56]} 2. Nf3 {[%clk 0:03:00]}  e6 {[%clk 0:02:56]} 3. d4 {[%clk 0:03:00]}  cxd4 {[%clk 0:02:57]} 4. Nxd4 {[%clk 0:03:00]}  Nc6 {[%clk 0:02:58]} 5. Nxc6 {[%clk 0:03:00]}  bxc6 {[%clk 0:02:57]} 6. Bd3 {[%clk 0:03:01]}  d5 {[%clk 0:02:58]} 7. Qe2 {[%clk 0:02:56]}  Nf6 {[%clk 0:02:58]} 8. Nd2 {[%clk 0:02:55]}  Be7 {[%clk 0:02:58]} 9. O-O {[%clk 0:02:55]}  O-O {[%clk 0:02:58]} 10. c4 {[%clk 0:02:41]}  a5 {[%clk 0:02:58]} 11. b3 {[%clk 0:02:39]}  a4 {[%clk 0:02:59]} 12. Bb2 {[%clk 0:02:39]}  Re8 {[%clk 0:02:41]} 13. e5 {[%clk 0:01:49]}  Nd7 {[%clk 0:02:40]} 14. Nf3 {[%clk 0:01:49]}  Nc5 {[%clk 0:02:29]} 15. Bc2 {[%clk 0:01:45]}  Ba6 {[%clk 0:02:23]} 16. Rfd1 {[%clk 0:01:44]}  Qb8 {[%clk 0:02:14]} 17. Bd4 {[%clk 0:01:28]}  axb3 {[%clk 0:02:10]} 18. axb3 {[%clk 0:01:28]}  Nxb3 {[%clk 0:02:03]} 19. Qd3 {[%clk 0:01:24]}  g6 {[%clk 0:01:55]} 20. Bxb3 {[%clk 0:01:22]}  Rd8 {[%clk 0:01:49]} 21. Qc2 {[%clk 0:01:20]}  c5 {[%clk 0:01:40]} 22. Be3 {[%clk 0:01:19]}  d4 {[%clk 0:01:40]} 23. Bh6 {[%clk 0:01:13]}  Bb7 {[%clk 0:01:39]} 24. Rxa8 {[%clk 0:01:12]}  Bxa8 {[%clk 0:01:39]} 25. Bf4 {[%clk 0:01:00]}  Bc6 {[%clk 0:01:31]} 26. Qd3 {[%clk 0:00:59]}  Qc7 {[%clk 0:01:14]} 27. Ra1 {[%clk 0:00:49]}  Rb8 {[%clk 0:01:12]} 28. Nd2 {[%clk 0:00:47]}  Qb7 {[%clk 0:01:08]} 29. Qg3 {[%clk 0:00:38]}  Qb4 {[%clk 0:01:06]} 30. Ra7 {[%clk 0:00:30]}  Bb7 {[%clk 0:00:53]} 31. Bg5 {[%clk 0:00:25]}  Bf8 {[%clk 0:00:48]} 32. h4 {[%clk 0:00:22]}  Qc3 {[%clk 0:00:47]} 33. Qf4 {[%clk 0:00:20]}  d3 {[%clk 0:00:35]} 34. Bd1 {[%clk 0:00:18]}  Qc1 {[%clk 0:00:31]} 35. Qg4 {[%clk 0:00:13]}  h5 {[%clk 0:00:31]} 36. Nb3 {[%clk 0:00:09]}  Qb1 {[%clk 0:00:27]} 37. Nd2 {[%clk 0:00:01]}  Qc1 {[%clk 0:00:18]} 38. Qf4 {[%clk 0:00:02]}  Qxd1+ {[%clk 0:00:18]} 39. Kh2 {[%clk 0:00:02]}  Qg4 {[%clk 0:00:13]} 40. Qxg4 {[%clk 0:00:03]}  hxg4 {[%clk 0:00:13]} 41. Kg3 {[%clk 0:00:02]}  Bc6 {[%clk 0:00:13]} 42. Kxg4 {[%clk 0:00:02]}  Bxg2 {[%clk 0:00:13]} 43. Rc7 {[%clk 0:00:03]}  Bf1 {[%clk 0:00:13]} 44. f3 {[%clk 0:00:03]}  Be2 {[%clk 0:00:13]} 45. Kf4 {[%clk 0:00:04]}  Bg7 {[%clk 0:00:11]} 46. Ke3 {[%clk 0:00:05]}  Bxe5 {[%clk 0:00:11]} 47. Rd7 {[%clk 0:00:05]}  Bd4+ {[%clk 0:00:11]} 48. Ke4 {[%clk 0:00:05]}  e5 {[%clk 0:00:10]} 49. Kd5 {[%clk 0:00:05]}  Bc3 {[%clk 0:00:09]} 50. Ne4 {[%clk 0:00:05]}  Bd4 {[%clk 0:00:06]} 51. Bh6 {[%clk 0:00:05]}  Bxf3 {[%clk 0:00:05]} 52. Kd6 {[%clk 0:00:05]}  Bxe4 {[%clk 0:00:05]} 0-1


[Site "https://www.chess.com"]

[Event "Titled Tuesday Blitz August 02 Late 2022"]
[White "Djordjevic, Vuk"]
[Black "Swiercz, Dariusz"]
[WhiteFideId "902098"]
[BlackFideId "1126881"]
[WhiteElo "2456"]
[BlackElo "2627"]
[Result "0-1"]
[Round "08"]
[TimeControl "180+1"]
[Date "2022.08.02"]
[WhiteClock "0:00:01"]
[BlackClock "0:00:08"]

1. d4 {[%clk 0:03:00]}  d5 {[%clk 0:02:56]} 2. Nf3 {[%clk 0:02:58]}  Nc6 {[%clk 0:02:55]} 3. Bf4 {[%clk 0:02:47]}  Bg4 {[%clk 0:02:54]} 4. Nbd2 {[%clk 0:02:42]}  e6 {[%clk 0:02:53]} 5. e3 {[%clk 0:02:41]}  Bd6 {[%clk 0:02:53]} 6. Bg3 {[%clk 0:02:40]}  Nge7 {[%clk 0:02:52]} 7. c3 {[%clk 0:02:39]}  O-O {[%clk 0:02:49]} 8. Bd3 {[%clk 0:02:39]}  Bf5 {[%clk 0:02:49]} 9. e4 {[%clk 0:02:35]}  dxe4 {[%clk 0:02:49]} 10. Nxe4 {[%clk 0:02:35]}  h6 {[%clk 0:02:40]} 11. Qe2 {[%clk 0:02:28]}  a5 {[%clk 0:02:39]} 12. a4 {[%clk 0:02:22]}  Nd5 {[%clk 0:02:29]} 13. O-O {[%clk 0:02:05]}  Re8 {[%clk 0:02:07]} 14. Rfe1 {[%clk 0:01:46]}  Bxe4 {[%clk 0:01:58]} 15. Bxe4 {[%clk 0:01:40]}  Bxg3 {[%clk 0:01:51]} 16. hxg3 {[%clk 0:01:29]}  Qd6 {[%clk 0:01:51]} 17. Rad1 {[%clk 0:01:17]}  Rad8 {[%clk 0:01:32]} 18. Qb5 {[%clk 0:01:09]}  b6 {[%clk 0:01:10]} 19. Ne5 {[%clk 0:00:38]}  Nxe5 {[%clk 0:00:46]} 20. dxe5 {[%clk 0:00:39]}  Qc5 {[%clk 0:00:46]} 21. Qxc5 {[%clk 0:00:38]}  bxc5 {[%clk 0:00:46]} 22. Bd3 {[%clk 0:00:33]}  c6 {[%clk 0:00:37]} 23. Re4 {[%clk 0:00:31]}  Nb6 {[%clk 0:00:33]} 24. b3 {[%clk 0:00:28]}  Kf8 {[%clk 0:00:31]} 25. Rf4 {[%clk 0:00:23]}  c4 {[%clk 0:00:24]} 26. Bc2 {[%clk 0:00:19]}  Rxd1+ {[%clk 0:00:23]} 27. Bxd1 {[%clk 0:00:19]}  cxb3 {[%clk 0:00:24]} 28. Bxb3 {[%clk 0:00:19]}  Ke7 {[%clk 0:00:24]} 29. Kf1 {[%clk 0:00:17]}  Rb8 {[%clk 0:00:22]} 30. Bc2 {[%clk 0:00:11]}  Nd7 {[%clk 0:00:20]} 31. Rc4 {[%clk 0:00:08]}  Rb6 {[%clk 0:00:17]} 32. f4 {[%clk 0:00:08]}  f6 {[%clk 0:00:14]} 33. exf6+ {[%clk 0:00:08]}  gxf6 {[%clk 0:00:14]} 34. Be4 {[%clk 0:00:08]}  c5 {[%clk 0:00:13]} 35. g4 {[%clk 0:00:08]}  Kd6 {[%clk 0:00:13]} 36. Bf3 {[%clk 0:00:09]}  Rb2 {[%clk 0:00:07]} 37. Re4 {[%clk 0:00:08]}  Rc2 {[%clk 0:00:07]} 38. Re3 {[%clk 0:00:08]}  c4 {[%clk 0:00:06]} 39. Be2 {[%clk 0:00:07]}  Nb6 {[%clk 0:00:06]} 40. Ke1 {[%clk 0:00:04]}  Nd5 {[%clk 0:00:05]} 41. Re4 {[%clk 0:00:04]}  Nxc3 {[%clk 0:00:04]} 42. Rd4+ {[%clk 0:00:04]}  Ke7 {[%clk 0:00:03]} 43. Bxc4 {[%clk 0:00:04]}  Rxg2 {[%clk 0:00:03]} 44. f5 {[%clk 0:00:03]}  exf5 {[%clk 0:00:02]} 45. gxf5 {[%clk 0:00:03]}  Nxa4 {[%clk 0:00:03]} 46. Be6 {[%clk 0:00:03]}  Nc5 {[%clk 0:00:03]} 47. Bc8 {[%clk 0:00:03]}  Rc2 {[%clk 0:00:02]} 48. Kd1 {[%clk 0:00:03]}  Rc3 {[%clk 0:00:02]} 49. Kd2 {[%clk 0:00:02]}  Rg3 {[%clk 0:00:01]} 50. Rc4 {[%clk 0:00:03]}  Nb3+ {[%clk 0:00:02]} 51. Kc2 {[%clk 0:00:03]}  a4 {[%clk 0:00:03]} 52. Rxa4 {[%clk 0:00:03]}  Nc5 {[%clk 0:00:03]} 53. Rc4 {[%clk 0:00:03]}  Kd6 {[%clk 0:00:04]} 54. Rd4+ {[%clk 0:00:03]}  Ke5 {[%clk 0:00:04]} 55. Rc4 {[%clk 0:00:03]}  Kd5 {[%clk 0:00:05]} 56. Rb4 {[%clk 0:00:03]}  Rg2+ {[%clk 0:00:04]} 57. Kc3 {[%clk 0:00:03]}  Rg3+ {[%clk 0:00:05]} 58. Kc2 {[%clk 0:00:03]}  Rg2+ {[%clk 0:00:05]} 59. Kc3 {[%clk 0:00:04]}  Rg1 {[%clk 0:00:06]} 60. Rh4 {[%clk 0:00:03]}  Rg3+ {[%clk 0:00:06]} 61. Kc2 {[%clk 0:00:04]}  Rg8 {[%clk 0:00:05]} 62. Be6+ {[%clk 0:00:03]}  Nxe6 {[%clk 0:00:06]} 63. fxe6 {[%clk 0:00:04]}  Kxe6 {[%clk 0:00:07]} 64. Rxh6 {[%clk 0:00:04]}  Rd8 {[%clk 0:00:07]} 65. Rh5 {[%clk 0:00:01]}  f5 {[%clk 0:00:08]} 66. Rh1 {[%clk 0:00:02]}  f4 {[%clk 0:00:08]} 67. Rf1 {[%clk 0:00:01]}  Kf5 {[%clk 0:00:08]} 68. Kc3 {[%clk 0:00:01]}  Kg4 {[%clk 0:00:08]} 0-1


[Site "https://www.chess.com"]

[Event "Titled Tuesday Blitz August 02 Late 2022"]
[White "Drygalov, Sergey"]
[Black "Rosen, Eric"]
[WhiteFideId "24171743"]
[BlackFideId "2032562"]
[WhiteElo "2523"]
[BlackElo "2362"]
[Result "1-0"]
[Round "08"]
[TimeControl "180+1"]
[Date "2022.08.02"]
[WhiteClock "0:00:10"]
[BlackClock "0:00:02"]

1. d4 {[%clk 0:03:00]}  d5 {[%clk 0:02:53]} 2. c4 {[%clk 0:03:00]}  e6 {[%clk 0:02:51]} 3. Nf3 {[%clk 0:03:00]}  Nf6 {[%clk 0:02:51]} 4. Nc3 {[%clk 0:03:01]}  a6 {[%clk 0:02:51]} 5. cxd5 {[%clk 0:02:59]}  exd5 {[%clk 0:02:51]} 6. Bg5 {[%clk 0:03:00]}  Be7 {[%clk 0:02:50]} 7. e3 {[%clk 0:02:58]}  O-O {[%clk 0:02:51]} 8. Bd3 {[%clk 0:02:58]}  Re8 {[%clk 0:02:51]} 9. O-O {[%clk 0:02:58]}  Nbd7 {[%clk 0:02:51]} 10. Qc2 {[%clk 0:02:57]}  c6 {[%clk 0:02:50]} 11. h3 {[%clk 0:02:54]}  Nf8 {[%clk 0:02:49]} 12. Ne5 {[%clk 0:02:46]}  N6d7 {[%clk 0:02:46]} 13. Bxe7 {[%clk 0:02:38]}  Qxe7 {[%clk 0:02:45]} 14. Nf3 {[%clk 0:02:39]}  Ng6 {[%clk 0:02:42]} 15. Rfe1 {[%clk 0:02:39]}  Nf6 {[%clk 0:02:31]} 16. Rab1 {[%clk 0:02:38]}  Ne4 {[%clk 0:02:19]} 17. b4 {[%clk 0:02:36]}  Nh4 {[%clk 0:02:10]} 18. Be2 {[%clk 0:02:20]}  Qf6 {[%clk 0:01:31]} 19. Nxe4 {[%clk 0:01:45]}  dxe4 {[%clk 0:01:31]} 20. Nxh4 {[%clk 0:01:42]}  Qxh4 {[%clk 0:01:31]} 21. Bf1 {[%clk 0:01:38]}  Be6 {[%clk 0:01:15]} 22. a4 {[%clk 0:01:35]}  Bd5 {[%clk 0:00:53]} 23. b5 {[%clk 0:01:34]}  axb5 {[%clk 0:00:51]} 24. axb5 {[%clk 0:01:35]}  Re6 {[%clk 0:00:45]} 25. bxc6 {[%clk 0:01:35]}  bxc6 {[%clk 0:00:43]} 26. Ra1 {[%clk 0:01:26]}  Rae8 {[%clk 0:00:39]} 27. g3 {[%clk 0:01:26]}  Rg6 {[%clk 0:00:24]} 28. Bg2 {[%clk 0:01:25]}  Qe7 {[%clk 0:00:22]} 29. Ra6 {[%clk 0:01:14]}  h5 {[%clk 0:00:21]} 30. Rea1 {[%clk 0:01:07]}  h4 {[%clk 0:00:20]} 31. g4 {[%clk 0:01:08]}  f5 {[%clk 0:00:17]} 32. gxf5 {[%clk 0:01:04]}  Rg5 {[%clk 0:00:14]} 33. Ra8 {[%clk 0:01:03]}  Kh7 {[%clk 0:00:12]} 34. Rxe8 {[%clk 0:01:00]}  Qxe8 {[%clk 0:00:12]} 35. Qe2 {[%clk 0:01:00]}  Qf7 {[%clk 0:00:08]} 36. Kh1 {[%clk 0:00:39]}  Qxf5 {[%clk 0:00:09]} 37. Rg1 {[%clk 0:00:39]}  Qg6 {[%clk 0:00:09]} 38. Qd1 {[%clk 0:00:33]}  Be6 {[%clk 0:00:08]} 39. Qb1 {[%clk 0:00:31]}  Bf5 {[%clk 0:00:08]} 40. Qd1 {[%clk 0:00:31]}  Qe6 {[%clk 0:00:06]} 41. Kh2 {[%clk 0:00:28]}  Qd6+ {[%clk 0:00:05]} 42. Kh1 {[%clk 0:00:28]}  Kh6 {[%clk 0:00:04]} 43. Qe1 {[%clk 0:00:25]}  Qe6 {[%clk 0:00:04]} 44. Kh2 {[%clk 0:00:25]}  Qd6+ {[%clk 0:00:04]} 45. Kh1 {[%clk 0:00:24]}  Qg6 {[%clk 0:00:05]} 46. Qc1 {[%clk 0:00:19]}  Qf6 {[%clk 0:00:04]} 47. Qe1 {[%clk 0:00:18]}  Bg6 {[%clk 0:00:04]} 48. Bf1 {[%clk 0:00:10]}  Qf3+ {[%clk 0:00:04]} 49. Bg2 {[%clk 0:00:11]}  Qf5 {[%clk 0:00:04]} 50. Bf1 {[%clk 0:00:11]}  Bh5 {[%clk 0:00:02]} 51. Rxg5 {[%clk 0:00:12]}  Qxg5 {[%clk 0:00:03]} 52. Bg2 {[%clk 0:00:12]}  Bf3 {[%clk 0:00:03]} 53. Qg1 {[%clk 0:00:12]}  Qf5 {[%clk 0:00:02]} 54. Kh2 {[%clk 0:00:10]} 1-0


[Site "https://www.chess.com"]